Cogmind - Beta 13 @@@ ROGUE MODE // 2024.04.03 @ 12:17:55 Player: Fblade Result: Destroyed by Y-64 Sentinel with Wave Gun Performance ------------- Evolutions (1) 500 Regions Visited (5) 1000 Robots Destroyed (26) 130 Value Destroyed (692) 692 Prototype IDs (0) 0 Alien Tech Used (0) 0 Bonus (287) 287 TOTAL SCORE: 2609 Bonus ------- Follower Combat Kills 287 Cogmind --------- Core Integrity 0/400 Matter 175/300 Energy 100/100 System Corruption 0% Temperature Cool (9) Movement Core (350) Ox6 Location -6/Proximity Caves Parts ------- > --- POWER (1) -------- (None) > --- PROPULSION (4) --- (None) > --- UTILITY (2) ------ Large Storage Unit > --- WEAPON (2) ------- (None) > --- INVENTORY (15) --- Light Nuclear Core Compact Battery (200) Structural Scanner Advanced Targeting Computer Phase Shifter Power Shielding Minigun Katana Peak State ------------ > --- POWER ------------ Improved Ion Engine > --- PROPULSION ------- Armored Treads Armored Treads Armored Treads Armored Treads > --- UTILITY ---------- Large Storage Unit Power Shielding > --- WEAPON ----------- Plasma Rifle Minigun > --- INVENTORY -------- Light Nuclear Core Light Treads Improved Cooling System Compact Battery Structural Scanner Advanced Targeting Computer Phase Shifter Lightning Gun Makeshift Laser Minigun Katana [Rating: 27] Favorites ----------- Power Improved Ion Engine Engine Improved Ion Engine Power Core Light Nuclear Core Reactor Antimatter Reactor Propulsion Armored Treads Treads Armored Treads Wheel Compact Wheel Utility Power Shielding Device Structural Scanner Storage Large Storage Unit Processor Signal Interpreter Protection Power Shielding Weapon Minigun Energy Gun Plasma Rifle Ballistic Gun Minigun Build | -11 -10 -9 -9 -7 -6 ------- Run | Yrd Mat Mat Min Zio Pro Slots Evolved 2 | . . 2 . . . Power . | . . . . . . Propulsion 2 | . . 2 . . . Utility . | . . . . . . Weapon . | . . . . . . Parts Attached 27 | 6 2 9 . 1 9 Power 4 | 1 . 1 . . 2 Engine 2 | 1 . 1 . . . Core 1 | . . . . . 1 Reactor 1 | . . . . . 1 Propulsion 7 | 2 . 4 . . 1 Treads 5 | . . 4 . . 1 Leg . | . . . . . . Wheel 2 | 2 . . . . . Hover . | . . . . . . Flight . | . . . . . . Utility 7 | 1 2 2 . . 2 Device 3 | . 1 1 . . 1 Storage 2 | 1 . . . . 1 Processor 1 | . 1 . . . . Hackware . | . . . . . . Protection 1 | . . 1 . . . Artifact . | . . . . . . Weapon 9 | 2 . 2 . 1 4 Energy Gun 3 | . . . . . 3 Energy Cannon . | . . . . . . Ballistic Gun 6 | 2 . 2 . 1 1 Ballistic Cannon . | . . . . . . Launcher . | . . . . . . Special Weapon . | . . . . . . Impact Weapon . | . . . . . . Slashing Weapon . | . . . . . . Piercing Weapon . | . . . . . . Special Melee Weapon . | . . . . . . Unidentified Prototypes . | . . . . . . Parts Lost 14 | . . 2 . . 12 Power 2 | . . . . . 2 Propulsion 6 | . . 1 . . 5 Utility 1 | . . . . . 1 Weapon 5 | . . 1 . . 4 Highest Loss Streak 12 | . . 1 . . 12 To Critical Strikes . | . . . . . . Average Slot Usage (%) 96 | . 94 90 100 100 95 Engine 10 | . 14 11 11 11 9 Treads 36 | . . 29 44 44 40 Wheel 3 | . 28 5 . . . Device 8 | . 8 10 11 11 3 Storage 3 | . 5 . . . 8 Processor 1 | . 8 7 . . . Protection 8 | . . 3 11 11 10 Ballistic Gun 22 | . 28 22 22 22 20 Naked Turns . | . . . . . . Heaviest Build 35 | 12 12 15 15 15 35 Greatest Support 80 | 32 32 80 80 80 80 Greatest Overweight (x) 7 | . . . . . 7 Average Overweight (x) . | . . . . . . Largest Inventory Capacity 15 | 8 8 5 5 5 15 Average Capacity 7 | 6 6 5 5 5 12 Most Carried 12 | 5 4 5 5 5 12 Average Carried 5 | 2 2 4 4 4 8 Final Capacity 15 | 8 5 5 5 5 15 Final Carried 8 | 2 3 5 5 5 8 Class Distribution -------------------- 100% | Mutant Dominant Class ---------------- Mutant | -10/Materials Mutant | -9/Materials Mutant | -9/Mines Mutant | -7/Zion Mutant | -6/Proximity Caves Resources | -11 -10 -9 -9 -7 -6 ----------- Run | Yrd Mat Mat Min Zio Pro Matter Collected 664 | 132 44 250 63 74 101 Remotely . | . . . . . . Salvage Created 825 | . 44 250 150 . 381 Parts 41 | . 4 13 13 . 11 Haulers Intercepted . | . . . . . . Recyclers Shooed . | . . . . . . Parts Field Recycled . | . . . . . . Retrieved Matter . | . . . . . . Parts Self-Destructed 27 | . . . . 3 24 Prevented 1 | . . . . . 1 Kills | -11 -10 -9 -9 -7 -6 ------- Run | Yrd Mat Mat Min Zio Pro Combat Hostiles Destroyed 25 | . 3 6 7 . 9 Melee 2 | . . . 2 . . Guns 22 | . 3 6 5 . 8 Classes Destroyed 4 | . 1 2 1 . . Recycler 1 | . . . 1 . . Swarmer 14 | . 3 . 7 . 4 Grunt 10 | . . 5 . . 5 Sentry 1 | . . 1 . . . Best Kill Streak 8 | . 2 4 8 . 6 Combat Bots Only 7 | . 2 4 7 . 6 Max Kills in Single Turn 2 | . 1 1 2 . 1 Gunslinging . | . . . . . . Exploded . | . . . . . . Melee 1 | . . . 1 . . Uniques/NPCs Destroyed . | . . . . . . Combat | -11 -10 -9 -9 -7 -6 -------- Run | Yrd Mat Mat Min Zio Pro Hostile Shots Fired 262 | . 12 89 31 . 130 Missed 66 | . 4 23 6 . 33 Damage Taken 3130 | . 71 838 208 . 2013 Core 417 | . 16 82 26 . 293 Absorbed by Shields . | . . . . . . Redirected to Shielding 34 | . . 4 1 . 29 Regen/Repaired (Parts) 27 | . . . . 27 . Core Remaining (%) 96 | 100 93 . . . . Volleys Fired 70 | . 8 15 11 . 36 Largest 2 | . 2 2 2 . 2 Hottest 130 | . 40 50 50 . 130 Shots Fired 136 | . 16 30 22 . 68 Gun 136 | . 16 30 22 . 68 Cannon . | . . . . . . Launcher . | . . . . . . Special . | . . . . . . Kinetic 117 | . 16 30 22 . 49 Thermal 18 | . . . . . 18 Explosive . | . . . . . . Electromagnetic 1 | . . . . . 1 Robot Hit Streak 15 | . 2 7 7 . 15 Robot Miss Streak 6 | . 2 3 3 . 6 Penetration Max . | . . . . . . Secondary Targets 4 | . . . 2 . 2 Max Gunslinging Chain 1 | . . . 1 . 1 Shots Hit Robots 89 | . 7 21 12 . 49 Core Hits 37 | . 3 10 6 . 18 Critical Kills 1 | . . . 1 . . Critical Parts Destroyed . | . . . . . . Critical Strikes 4 | . . 1 1 . 2 Burn 2 | . . . . . 2 Destroy 2 | . . 1 1 . . Melee Attacks . | . . . . . . Impact . | . . . . . . Slashing . | . . . . . . Piercing . | . . . . . . Sneak Attacks . | . . . . . . Combat Hostiles . | . . . . . . Follow-up Attacks . | . . . . . . Damage Inflicted 1583 | . 98 350 229 . 906 Guns 1555 | . 91 340 218 . 906 Cannons . | . . . . . . Explosions . | . . . . . . Melee . | . . . . . . Ramming 28 | . 7 10 11 . . Kinetic 1177 | . 91 340 218 . 528 Thermal 358 | . . . . . 358 Explosive . | . . . . . . Electromagnetic 20 | . . . . . 20 Impact . | . . . . . . Slashing . | . . . . . . Piercing . | . . . . . . Highest Corruption . | . . . . . . Average Corruption . | . . . . . . Corruption Purged . | . . . . . . Corruption Blocked . | . . . . . . Overload Shots . | . . . . . . Overflow Damage . | . . . . . . Projectiles . | . . . . . . Explosions . | . . . . . . Melee . | . . . . . . Knockbacks . | . . . . . . Impact . | . . . . . . Kinetic . | . . . . . . Secondary . | . . . . . . Self-Inflicted Damage 3 | . 3 . . . . Shots . | . . . . . . Rammed 16 | . 2 9 5 . . Targets Rammed 18 | . 2 9 7 . . Kicked . | . . . . . . Crushed 2 | . . . 2 . . Highest Temperature 380 | . . 44 12 . 380 Average Temperature 62 | . . 13 6 . 94 Received Heat Transfer 1035 | . 6 426 15 . 588 Effects 1 | . . . . . 1 Short Circuit 1 | . . . . . 1 Siege Activations . | . . . . . . Robots Corrupted . | . . . . . . Combat Hostiles . | . . . . . . Parts Fried . | . . . . . . Impact Corruptions . | . . . . . . Robots Melted 1 | . . . . . 1 Combat Hostiles 1 | . . . . . 1 Parts Melted 1 | . . . . . 1 Heat Transferred 985 | . . . . . 985 Parts Sabotaged . | . . . . . . Parts Stolen . | . . . . . . Parts Stripped . | . . . . . . Power Chain Reactions . | . . . . . . Alert | -11 -10 -9 -9 -7 -6 ------- Run | Yrd Mat Mat Min Zio Pro Peak Influence 250 | . 142 219 250 . . Initial 85 | . . 59 85 . . Average 102 | . 95 116 118 . . Maximum Alert Level 1 | . . 1 1 . . Low Security (%) 93 | 100 100 91 85 . . Level 1 6 | . . 8 14 . . Level 2 . | . . . . . . Level 3 . | . . . . . . Level 4 . | . . . . . . Level 5 . | . . . . . . High Security . | . . . . . . Max Security . | . . . . . . Squads Dispatched 3 | . 2 1 . . . Investigation 1 | . 1 . . . . Extermination . | . . . . . . Reinforcement 2 | . 1 1 . . . Assault . | . . . . . . Garrison . | . . . . . . Intercept . | . . . . . . Searches Triggered . | . . . . . . Construction Impeded . | . . . . . . Haulers Reinforced . | . . . . . . Active Scanning Responses . | . . . . . . Cargo Convoy Interrupts . | . . . . . . Stealth | -11 -10 -9 -9 -7 -6 --------- Run | Yrd Mat Mat Min Zio Pro Distress Signals . | . . . . . . Communications Jammed . | . . . . . . Distress Signals . | . . . . . . Times Spotted 45 | . 10 7 9 . 19 Peak Tracking Total 10 | . 3 4 6 . 10 Tactical Retreats 4 | . 2 1 . . 1 Traps | -11 -10 -9 -9 -7 -6 ------- Run | Yrd Mat Mat Min Zio Pro Traps Triggered . | . . . . . . Indirectly . | . . . . . . Trap Hack Attempts . | . . . . . . Triggered . | . . . . . . Disarmed . | . . . . . . Reprogrammed . | . . . . . . Reused . | . . . . . . Traps Extracted . | . . . . . . Installed . | . . . . . . Triggered . | . . . . . . Machines | -11 -10 -9 -9 -7 -6 ---------- Run | Yrd Mat Mat Min Zio Pro Machines Disabled 1 | . . . . . 1 Max in Single Turn . | . . . . . . Machines Repaired . | . . . . . . Machines Dismantled . | . . . . . . Machines Sabotaged . | . . . . . . Overloaded Fab Kills . | . . . . . . Hacking | -11 -10 -9 -9 -7 -6 --------- Run | Yrd Mat Mat Min Zio Pro Machines Accessed 3 | . 3 . . . . Terminals 1 | . 1 . . . . Fabricators . | . . . . . . Repair Stations . | . . . . . . Recycling Units 2 | . 2 . . . . Scanalyzers . | . . . . . . Garrison Access . | . . . . . . Total Hacks 10 | . 10 . . . . Successful 8 | . 8 . . . . Failed 2 | . 2 . . . . Catastrophic . | . . . . . . Database Lockouts . | . . . . . . Manual 3 | . . . . 3 . Terminals 3 | . 3 . . . . Fabricators . | . . . . . . Repair Stations . | . . . . . . Recycling Units 7 | . 7 . . . . Scanalyzers . | . . . . . . Garrison Access . | . . . . . . Terminal Hacks 2 | . 2 . . . . Record 2 | . 2 . . . . Fabricator Hacks . | . . . . . . Repair Station Hacks . | . . . . . . Recycling Unit Hacks 6 | . 6 . . . . Recycle Component 1 | . 1 . . . . Process 2 | . 2 . . . . Report Inventory 3 | . 3 . . . . Scanalyzer . | . . . . . . Garrison Access Hacks . | . . . . . . Unauthorized Hacks . | . . . . . . Terminals . | . . . . . . Fabricators . | . . . . . . Repair Stations . | . . . . . . Recycling Units . | . . . . . . Scanalyzers . | . . . . . . Garrison Access . | . . . . . . Data Cores Recovered . | . . . . . . Used . | . . . . . . Hacking Detections 3 | . 3 . . . . Full Trace Events 2 | . 2 . . . . Feedback Events . | . . . . . . Feedback Blocked . | . . . . . . Robot Schematics Acquired 2 | . . . . 2 . Robots Built . | . . . . . . Authchips . | . . . . . . Time . | . . . . . . Total Robot Build Rating . | . . . . . . Part Schematics Acquired 14 | . . . . 14 . Parts Built . | . . . . . . Authchips . | . . . . . . Time . | . . . . . . Total Part Build Rating . | . . . . . . Parts Repaired . | . . . . . . Time . | . . . . . . Parts Recycled 1 | . 1 . . . . Recycled Matter 58 | . 58 . . . . Retrieved Matter . | . . . . . . Retrieved Components . | . . . . . . Parts Scanalyzed . | . . . . . . Part Schematics Acquired . | . . . . . . Parts Damaged . | . . . . . . Bothacking | -11 -10 -9 -9 -7 -6 ------------ Run | Yrd Mat Mat Min Zio Pro Used RIF Installer . | . . . . . . Robots Hacked . | . . . . . . Non-combat . | . . . . . . Combat . | . . . . . . Robot Hacks Applied . | . . . . . . Relay Couplers Released . | . . . . . . Fabnet Peak Effective % . | . . . . . . Robots Rewired . | . . . . . . Allies Hacked . | . . . . . . Hacks Repelled . | . . . . . . Allies | -11 -10 -9 -9 -7 -6 -------- Run | Yrd Mat Mat Min Zio Pro Total Allies 2 | . . . . 2 . Largest Group 2 | . . . . 2 2 Highest-Rated Group 192 | . . . . 192 192 Highest-Rated Ally 96 | . . . . 96 96 Total Orders . | . . . . . . Ally Attacks 24 | . . . . . 24 Total Damage 684 | . . . . . 684 Kills 8 | . . . . . 8 Allies Corrupted . | . . . . . . Allies Melted . | . . . . . . Intel | -11 -10 -9 -9 -7 -6 ------- Run | Yrd Mat Mat Min Zio Pro Robot Analysis Total . | . . . . . . Derelict Logs Recovered 4 | . . . . 2 2 Drone Launches . | . . . . . . Drone Recoveries . | . . . . . . Exploration | -11 -10 -9 -9 -7 -6 ------------- Run | Yrd Mat Mat Min Zio Pro Turns Passed 2571 | 54 287 314 189 987 740 Spaces Moved 1477 | 46 254 156 87 578 356 Core 13 | 11 . . . . 2 Treads 1097 | . . 78 87 578 354 Legs . | . . . . . . Wheels 367 | 35 254 78 . . . Hover . | . . . . . . Flight . | . . . . . . Fastest Speed 50 | 50 100 100 170 170 170 Average Speed 152 | 88 100 135 170 170 172 Slowest Speed 400 | 100 100 170 170 170 400 Overloaded Moves . | . . . . . . Propulsion Burnouts . | . . . . . . Robots Hopped . | . . . . . . Cave-ins Triggered . | . . . . . . Exploration Rate (%) 35 | 4 51 12 23 73 51 Regions Visited 5 Branch Regions 3 Pre-discovered Areas . | . . . . . . Known Exits Taken 1 | . 1 . . . . Unknown Exits Taken 4 | 1 . 1 1 1 . Scrap Searched 7 | . . . 1 3 3 Spaces Dug . | . . . . . . Terrain Destroyed . | . . . . . . Melee . | . . . . . . Projectile . | . . . . . . AOE . | . . . . . . Terrain Rammed . | . . . . . . Walls Destroyed . | . . . . . . Machines Disabled . | . . . . . . Actions | -11 -10 -9 -9 -7 -6 --------- Run | Yrd Mat Mat Min Zio Pro Total 1674 | 59 271 232 106 584 422 Wait 33 | . 1 22 . . 10 Move 1472 | 45 253 155 86 577 356 Hop . | . . . . . . Pick Up 39 | 8 4 14 1 3 9 Fast Attach . | . . . . . . Attach 20 | 6 1 6 . 1 6 Detach . | . . . . . . Swap 7 | . 1 3 . . 3 Drop 15 | . 1 8 1 3 2 Fire 70 | . 8 15 11 . 36 Melee . | . . . . . . Ram 2 | . 2 . . . . Kick . | . . . . . . Crush 16 | . . 9 7 . . Escape Stasis . | . . . . . . Rewire . | . . . . . . Trap . | . . . . . . Miscellaneous . | . . . . . . Route ------- -11/Scrapyard -10/Materials -9/Materials -9/Mines -7/Zion -6/Proximity Caves History --------- Turn | Location | Event 25 | -11/Scrapyard | Discovered new exit (range 16) 55 | -11/Scrapyard | Entered Materials 316 | -10/Materials | Build established: Mutant 324 | -10/Materials | Discovered new exit (range 11) 341 | -10/Materials | Identified exit to Materials 342 | -10/Materials | Entered another Materials area 342 | -9/Materials | Evolved 2 slots: Propulsion x2 398 | -9/Materials | Discovered new exit (range 16) 656 | -9/Materials | Entered Mines 837 | -9/Mines | A Derelict revealed a hidden shortcut to a safe place 845 | -9/Mines | Entered Zion 849 | -7/Zion | Destroyed 7 combat bots 857 | -7/Zion | Given A8's code to call for help 1099 | -7/Zion | Received a visual enhancement algorithm 1119 | -7/Zion | Enhanced Grunt warped into view, answering call for help 1120 | -7/Zion | Enhanced Grunt warped into view, answering call for help 1323 | -7/Zion | Learned location of 1 exit from Factory 1752 | -7/Zion | Discovered new exit (range 14) 1755 | -7/Zion | Learned Factory terminal intel 1832 | -7/Zion | Entered Proximity Caves 1832 | -6/Proximity Caves | Accompanied by 2 allies 1911 | -6/Proximity Caves | Learned 8 Factory zone layouts 1977 | -6/Proximity Caves | Learned Factory trap positions 2533 | -6/Proximity Caves | Attracted the attention of an 0b10 base 2543 | -6/Proximity Caves | Core integrity fell below 50% 2563 | -6/Proximity Caves | Core integrity fell below 20% 2572 | -6/Proximity Caves | Destroyed by Y-64 Sentinel with Wave Gun Last Messages --------------- Plasma Rifle destroyed. Penetrated by Slug. Antimatter Reactor destroyed. Corrupted Carbon-fiber Leg self-destruct mechanism malfunctions. Y-64 Sentinel heat spikes uncontrollably. Penetrated by Slug. Y-64 Sentinel heat damages Imp. Treads. Mak. Laser destroyed. Penetrated by Slug. Y-64 Sentinel heat spikes uncontrollably. Y-64 Sentinel heat damages Adv. Heat Sink. Y-64 Sentinel heat spikes uncontrollably. Imp. Cooling System destroyed. Penetrated by Slug. Y-64 Sentinel heat short circuits KE Penetrator. Machine disabled. Penetrated by Slug. Y-64 Sentinel heat spikes uncontrollably. Minigun destroyed. Penetrated by Slug. Map ----- +----------------------------------------------------+ | ?????????????????????????????????????????????????? | | ?????????????????????????????????????????????????? | | ?????????????????????????????????????????????????? | | ?????????????????????????????????????????????????? | | ?###?????????????????????????????????????????????? | | ?# ##??????#####?????????????????????????????????? | | ## !###????# ##????????????????????????????????? | | % #????# #????????????????????????????????? | | ###### ##???????????????????????????????? | | # ##??????????????????????????????? | | #??????????????????????????????? | | ### #??????????????????????????????? | | #?# ##??????????????????????????????? | | ##?# ## ##??????????????????????????????? | | #??## ## ;#?###??????????????????????????? | | ##???###### ### #??????????????????????????? | | #?????????# ##?????????????????????????? | | ##????????## % #?????????????????????????? | | ##??# ##### % ##????????????????????????? | | ##??# #######??????????????????? | | ??? % # ???????????????????? | | ??? ## ????????????????????? | | ???? % ;# #?#####++##???????????? | | ???? ## # %#" #???????????? | | ???? ###?## #"" #???????????? | | ???? ??????## "# [ #@ ;" #????????????????? | | ?????????????###### # =;"" #????????????????? | | ??????????????????#" [ ## ]! #????????????????? | | ??????????????????## %###!!/Y #????????????????? | | ??????????????????# %##?#Y%/%% + ??????????????? | | ?????????????????# #??#*!/%= + ????????????? | | ?????????????????# #??# / # ????????????? | | ????????????????# #??# # #? ???????????? | | ???????????????# ??# # % #??" ??????????? | | ?????????????? ??# #" #????#???????????? | | ????????????? ??# #"" ????????????????? | | ???????????? ## ??# #? ???????????????? | | ??????????? #?? ??# #??####+??????????????? | | ??????????? ??? ??# ?????? ??????????????? | | ????????????? ?????? ?????????????????????? | | ???????????????????????? ?????????????????????? | | ????????????????????????####?????????????????????? | | ?????????????????????????????????????????????????? | | ?????????????????????????????????????????????????? | | ?????????????????????????????????????????????????? | | ?????????????????????????????????????????????????? | | ?????????????????????????????????????????????????? | | ?????????????????????????????????????????????????? | | ?????????????????????????????????????????????????? | | ?????????????????????????????????????????????????? | +----------------------------------------------------+ Best States ------------- Heat Dissipation 55 Energy Generation 21 Energy Capacity 325 Matter Stores 300 Matter Capacity 300 Sight Range 16 Terrain Scan Density 10 ECM Strength 1 Power Shielding 33 Evasion (%) 50 Recoil Reduction 4 Item Schematics ----------------- Mak. Spear | -7/Zion | Archive Lgt. Angular Momentum Engine | -7/Zion | Archive Arm. Leg | -7/Zion | Archive Mak. Power Source | -7/Zion | Archive Flexi-carbon Leg | -7/Zion | Archive Imp. Coolant Injector | -7/Zion | Archive Hvy. Pick | -7/Zion | Archive Chainsword | -7/Zion | Archive Microactuators | -7/Zion | Archive Adv. Melee Analysis Suite | -7/Zion | Archive System Restoration Module | -7/Zion | Archive Nuclear Pulse Thruster | -7/Zion | Archive Component Analysis Suite | -7/Zion | Archive Imp. Plasma Cutter | -7/Zion | Archive Robot Schematics ------------------ A-02 Transporter | -7/Zion | Archive S-27 Virus | -7/Zion | Archive Fabricated ------------ Nothing Alien Tech Used ----------------- None Achievements -------------- Help From High Places It's Just You Robot Respite Tourist Challenges ------------ None Game ------ Seed SingularityStasisDissipator Manual? 0 Play Time 00:27:25 Cumulative 1.7 hours Start 2024.04.03 @ 11:50:51 End 2024.04.03 @ 12:17:55 Sessions 1 Manual Loads 0 Difficulty Rogue Special Mode None Game No. 4 Rogue 4 Adventurer 0 Explorer 0 Win Type - Total 0 Types 0/0/0/0/0/0/0/0/0 Lore% 2 Gallery% 5 Achievement% 5 Wizard Run 0 Options --------- Layout 0 ASCII 0 Keyboard 0 Movement Arrows Keybinds 0 Fullscreen 1 Font 18/SmallcapsGlow Map View 76x50 Zoom Use 0% Tactical HUD 0 Map Filters NONE Filters NONE Steam 1 RUN: a84e3ea1-11ac-4a12-b9b5-a52eaffa1d25